fUSD/lending_fUSD_20260617
["ID","MTS","AMOUNT","RATE_DAILY","PERIOD"]
[425258533,1781635845000,-1491.44,0.00029467,2]
[425258536,1781635845000,-1491.44,0.00029634,30]
[425258541,1781635845000,-584.40812057,0.00029799,7]
[425258535,1781635845000,-150.0,0.00029534,2]
[425258532,1781635845000,-151.5,0.00029338,13]
[425258534,1781635845000,-1591.45,0.00029467,2]
[425258539,1781635845000,-266.5636281,0.00029799,7]
[425258540,1781635845000,-365.18508994,0.00029799,7]
[425258538,1781635845000,-151.92245558,0.00029799,7]
[425258530,1781635845000,-151.49,0.00029338,13]
[425258537,1781635845000,-1591.45,0.00029634,30]
[425258543,1781635845000,-580.43952629,0.00029799,7]
[425258562,1781635845000,-468.0,0.0002985,5]
[425258547,1781635845000,-345.79289971,0.00029799,7]
[425258550,1781635845000,-660.89088809,0.00029799,2]
[425258542,1781635845000,-331.60594113,0.00029799,7]
[425258551,1781635845000,-894.86530663,0.00029799,7]
[425258546,1781635845000,-380.92581212,0.00029799,7]
[425258549,1781635845000,-616.07672232,0.00029799,7]
[425258552,1781635845000,-602.12219107,0.00029799,7]
[425258554,1781635845000,-552.15179334,0.00029799,7]
[425258553,1781635845000,-607.38945751,0.00029799,7]
[425258555,1781635845000,-642.04965028,0.00029799,7]
[425258559,1781635845000,-585.0,0.00029807,4]
[425258531,1781635845000,-151.49,0.00029338,13]
[425258548,1781635845000,-607.58423159,0.00029799,7]
[425258526,1781635845000,-182.45,0.00029338,13]
[425258509,1781635845000,-317.38172974,0.00029308,7]
[425258529,1781635845000,-151.49,0.00029338,13]
[425258503,1781635845000,-329.11151655,0.00029308,7]
[425258502,1781635845000,-180.8639897,0.00029308,7]
[425258500,1781635845000,-158.29441882,0.00029308,7]
[425258501,1781635845000,-157.27810054,0.00029308,7]
[425258505,1781635845000,-284.20771516,0.00029308,7]
[425258504,1781635845000,-188.50289011,0.00029308,7]
[425258511,1781635845000,-172.89644985,0.00029308,7]
[425258512,1781635845000,-190.46290606,0.00029308,7]
[425258510,1781635845000,-183.26075859,0.00029308,7]
[425258516,1781635845000,-159.73623316,0.00029308,7]
[425258514,1781635845000,-395.89818077,0.00029308,7]
[425258513,1781635845000,-152.74407033,0.00029308,7]
[425258515,1781635845000,-258.11383481,0.00029308,7]
[425258506,1781635845000,-166.6278712,0.00029308,7]
[425258507,1781635845000,-172.33184927,0.00029308,7]
[425258508,1781635845000,-153.90797519,0.00029308,7]
[425258560,1781635845000,-471.26,0.00029828,10]
[425258517,1781635845000,-164.26695454,0.00029308,7]
[425258518,1781635845000,-332.14669273,0.00029308,7]
[425258520,1781635845000,-164.57942114,0.00029308,7]
[425258523,1781635845000,-538.54793299,0.00029308,7]
[425258527,1781635845000,-182.45,0.00029338,13]
[425258528,1781635845000,-151.49,0.00029338,13]
[425258521,1781635845000,-522.65956243,0.00029308,7]
[425258519,1781635845000,-169.38674207,0.00029308,5]
[425258522,1781635845000,-333.08854736,0.00029308,7]
[425258525,1781635845000,-590.778536,0.00029308,7]
[425258524,1781635845000,-155.72851916,0.00029308,7]
[425258558,1781635845000,-894.71054342,0.00029806,7]
[425258545,1781635845000,-339.48418508,0.00029799,7]
[425258616,1781635845000,-151.5,0.00029886,13]
[425258592,1781635845000,-329.15884227,0.0002988,7]
[425258594,1781635845000,-264.10482945,0.0002988,2]
[425258591,1781635845000,-364.88078162,0.0002988,7]
[425258599,1781635845000,-217.38181247,0.0002988,7]
[425258595,1781635845000,-325.91780899,0.0002988,7]
[425258597,1781635845000,-499.63282104,0.0002988,7]
[425258598,1781635845000,-718.06391065,0.0002988,7]
[425258596,1781635845000,-267.8330395,0.0002988,7]
[425258601,1781635845000,-354.29488452,0.0002988,7]
[425258602,1781635845000,-163.21509227,0.0002988,7]
[425258603,1781635845000,-349.73999982,0.0002988,5]
[425258612,1781635845000,-151.49,0.00029886,13]
[425258593,1781635845000,-696.87941657,0.0002988,7]
[425258604,1781635845000,-311.45703831,0.0002988,7]
[425258608,1781635845000,-199.73842897,0.0002988,7]
[425258609,1781635845000,-787.70471467,0.0002988,7]
[425258611,1781635845000,-182.45,0.00029886,13]
[425258610,1781635845000,-182.45,0.00029886,13]
[425258607,1781635845000,-201.78579528,0.0002988,7]
[425258606,1781635845000,-326.3317497,0.0002988,7]
[425258613,1781635845000,-151.49,0.00029886,13]
[425258618,1781635845000,-200.0,0.0003,11]
[425258617,1781635845000,-1244.45656713,0.000299,2]
[425258557,1781635845000,-384.89540396,0.00029805,7]
[425258615,1781635845000,-151.49,0.00029886,13]
[425258614,1781635845000,-151.49,0.00029886,13]
[425258605,1781635845000,-445.51098509,0.0002988,7]
[425258600,1781635845000,-425.28745704,0.0002988,7]
[425258556,1781635845000,-189.18428589,0.00029805,7]
[425258590,1781635845000,-233.76663879,0.0002988,2]
[425258589,1781635845000,-338.77348414,0.0002988,5]
[425258563,1781635845000,-150.0,0.00029879,20]
[425258564,1781635845000,-336.33245169,0.00029879,2]
[425258568,1781635845000,-314.55620109,0.00029879,7]
[425258576,1781635845000,-290.36741815,0.00029879,7]
[425258571,1781635845000,-428.01363539,0.00029879,7]
[425258573,1781635845000,-333.25574239,0.00029879,7]
[425258566,1781635845000,-453.91260525,0.00029879,7]
[425258574,1781635845000,-307.81595038,0.00029879,7]
[425258570,1781635845000,-493.66727482,0.00029879,7]
[425258575,1781635845000,-476.07259461,0.00029879,7]
[425258565,1781635845000,-436.85611967,0.00029879,7]
[425258572,1781635845000,-568.41543031,0.00029879,7]
[425258561,1781635845000,-581.0,0.0002985,5]
[425258567,1781635845000,-316.58883765,0.00029879,7]
[425258569,1781635845000,-361.72797939,0.00029879,7]
[425258587,1781635845000,-337.60709512,0.0002988,7]
[425258583,1781635845000,-328.53390907,0.0002988,7]
[425258584,1781635845000,-498.2200391,0.0002988,7]
[425258585,1781635845000,-256.16866023,0.0002988,7]
[425258581,1781635845000,-516.22766961,0.0002988,7]
[425258580,1781635845000,-231.78775142,0.0002988,7]
[425258588,1781635845000,-265.22369612,0.0002988,2]
[425258582,1781635845000,-204.40337887,0.0002988,7]
[425258586,1781635845000,-212.01908334,0.0002988,7]
[425258577,1781635845000,-415.88593238,0.0002988,7]
[425258579,1781635845000,-593.84727115,0.0002988,7]
[425258578,1781635845000,-305.48814066,0.0002988,7]
[425258648,1781635846000,-500.0,0.00030136,7]
[425258656,1781635846000,-500.0,0.00030136,7]
[425258650,1781635846000,-500.0,0.00030136,7]
[425258647,1781635846000,-500.0,0.00030136,7]
[425258652,1781635846000,-500.0,0.00030136,7]
[425258653,1781635846000,-500.0,0.00030136,7]
[425258655,1781635846000,-500.0,0.00030136,7]
[425258657,1781635846000,-500.0,0.00030136,7]
[425258654,1781635846000,-500.0,0.00030136,7]
[425258651,1781635846000,-500.0,0.00030136,7]
[425258649,1781635846000,-500.0,0.00030136,7]
[425258663,1781635846000,-500.0,0.00030136,7]
[425258658,1781635846000,-500.0,0.00030136,7]
[425258660,1781635846000,-500.0,0.00030136,7]
[425258661,1781635846000,-500.0,0.00030136,7]
[425258662,1781635846000,-500.0,0.00030136,7]
[425258665,1781635846000,-500.0,0.00030136,7]
[425258664,1781635846000,-500.0,0.00030136,7]
[425258667,1781635846000,-500.0,0.00030136,7]
[425258668,1781635846000,-500.0,0.00030136,7]
[425258666,1781635846000,-500.0,0.00030136,7]
[425258669,1781635846000,-500.0,0.00030136,7]
[425258640,1781635846000,-500.0,0.00030136,7]
[425258659,1781635846000,-500.0,0.00030136,7]
[425258644,1781635846000,-500.0,0.00030136,7]
[425258626,1781635846000,-153.0,0.00030009,30]
[425258646,1781635846000,-500.0,0.00030136,7]
[425258623,1781635846000,-751.0,0.00030009,30]
[425258621,1781635846000,-173.0,0.00030009,30]
[425258622,1781635846000,-152.0,0.00030009,30]
[425258619,1781635846000,-211.9,0.0003,11]
[425258620,1781635846000,-184.0,0.00030009,30]
[425258624,1781635846000,-1267.0,0.00030009,30]
[425258629,1781635846000,-198.0,0.00030012,30]
[425258627,1781635846000,-394.0,0.00030009,30]
[425258631,1781635846000,-157.0,0.00030012,30]
[425258632,1781635846000,-364.0,0.00030012,30]
[425258630,1781635846000,-677.0,0.00030012,30]
[425258633,1781635846000,-158.0,0.00030012,30]
[425258628,1781635846000,-189.0,0.00030009,30]
[425258625,1781635846000,-158.0,0.00030009,30]
[425258634,1781635846000,-450.0,0.000301,7]
[425258635,1781635846000,-500.0,0.00030136,7]
[425258636,1781635846000,-500.0,0.00030136,7]
[425258637,1781635846000,-500.0,0.00030136,7]
[425258638,1781635846000,-500.0,0.00030136,7]
[425258642,1781635846000,-500.0,0.00030136,7]
[425258643,1781635846000,-500.0,0.00030136,7]
[425258645,1781635846000,-500.0,0.00030136,7]
[425258641,1781635846000,-500.0,0.00030136,7]
[425258639,1781635846000,-500.0,0.00030136,7]
[425258678,1781635846000,-721.27160826,0.00030252,28]
[425258670,1781635846000,-500.0,0.00030136,7]
[425258674,1781635846000,-157.86834457,0.00030191,2]
[425258703,1781635846000,-152.0,0.00031009,30]
[425258704,1781635846000,-751.0,0.00031009,30]
[425258708,1781635846000,-394.0,0.00031009,30]
[425258702,1781635846000,-173.0,0.00031009,30]
[425258709,1781635846000,-189.0,0.00031009,30]
[425258707,1781635846000,-153.0,0.00031009,30]
[425258706,1781635846000,-158.0,0.00031009,30]
[425258711,1781635846000,-150.0,0.00031011,2]
[425258705,1781635846000,-1267.0,0.00031009,30]
[425258710,1781635846000,-250.35857322,0.0003101,2]
[425258712,1781635846000,-198.0,0.00031012,30]
[425258701,1781635846000,-184.0,0.00031009,30]
[425258716,1781635846000,-158.0,0.00031012,30]
[425258721,1781635846000,-182.44,0.00031256,13]
[425258720,1781635846000,-5000.0,0.00031234,15]
[425258714,1781635846000,-157.0,0.00031012,30]
[425258715,1781635846000,-364.0,0.00031012,30]
[425258718,1781635846000,-1000.0,0.000312,7]
[425258719,1781635846000,-903.1832866,0.00031225,7]
[425258722,1781635846000,-182.45,0.00031256,13]
[425258723,1781635846000,-151.49,0.00031256,13]
[425258725,1781635846000,-151.49,0.00031256,13]
[425258724,1781635846000,-151.49,0.00031256,13]
[425258671,1781635846000,-527.28854591,0.00030136,7]
[425258717,1781635846000,-907.447,0.00031175,28]
[425258700,1781635846000,-585.0,0.00030875,6]
[425258713,1781635846000,-677.0,0.00031012,30]
[425258697,1781635846000,-419.0,0.0003068,2]
[425258676,1781635846000,-200.0,0.00030192,2]
[425258699,1781635846000,-1459.8936,0.00030752,28]
[425258672,1781635846000,-689.75904325,0.00030137,2]
[425258673,1781635846000,-155.93878128,0.00030137,7]
[425258677,1781635846000,-1745.60876104,0.00030209,5]
[425258675,1781635846000,-187.67739745,0.00030191,2]
[425258681,1781635846000,-759.48028949,0.00030369,7]
[425258680,1781635846000,-500.0,0.00030368,2]
[425258683,1781635846000,-826.11361011,0.00030369,2]
[425258682,1781635846000,-770.0959029,0.00030369,7]
[425258688,1781635846000,-219.07,0.00030411,120]
[425258685,1781635846000,-759.23682189,0.00030369,7]
[425258679,1781635846000,-585.0,0.00030341,5]
[425258687,1781635846000,-200.0,0.000304,11]
[425258695,1781635846000,-162.27264118,0.0003068,2]
[425258689,1781635846000,-184.73,0.00030441,8]
[425258696,1781635846000,-3646.0,0.0003068,2]
[425258694,1781635846000,-250.0,0.00030479,7]
[425258693,1781635846000,-250.0,0.00030479,7]
[425258690,1781635846000,-815.9398296,0.00030451,7]
[425258698,1781635846000,-1078.97918953,0.00030752,28]
[425258691,1781635846000,-929.49970227,0.00030451,7]
[425258684,1781635846000,-752.65273883,0.00030369,7]
[425258686,1781635846000,-802.56206285,0.00030369,7]
[425258692,1781635846000,-984.63089334,0.00030451,7]
[425258768,1781635847000,-394.0,0.00032009,30]
[425258755,1781635847000,-240.43830193,0.00032,120]
[425258759,1781635847000,-178.59196414,0.00032,120]
[425258756,1781635847000,-250.0,0.00032,120]
[425258758,1781635847000,-154.0,0.00032,120]
[425258761,1781635847000,-184.0,0.00032009,30]
[425258760,1781635847000,-191.92236507,0.00032,120]
[425258762,1781635847000,-173.0,0.00032009,30]
[425258764,1781635847000,-751.0,0.00032009,30]
[425258763,1781635847000,-152.0,0.00032009,30]
[425258765,1781635847000,-1267.0,0.00032009,30]
[425258767,1781635847000,-153.0,0.00032009,30]
[425258779,1781635847000,-1140.6,0.00032329,2]
[425258769,1781635847000,-189.0,0.00032009,30]
[425258771,1781635847000,-677.0,0.00032012,30]
[425258772,1781635847000,-157.0,0.00032012,30]
[425258775,1781635847000,-100000.0,0.00032232,7]
[425258770,1781635847000,-198.0,0.00032012,30]
[425258773,1781635847000,-364.0,0.00032012,30]
[425258774,1781635847000,-158.0,0.00032012,30]
[425258776,1781635847000,-223.42751457,0.00032258,4]
[425258777,1781635847000,-230.19112735,0.00032329,2]
[425258778,1781635847000,-230.19112735,0.00032329,2]
[425258757,1781635847000,-250.0,0.00032,120]
[425258766,1781635847000,-158.0,0.00032009,30]
[425258745,1781635847000,-190.91066939,0.00032,120]
[425258730,1781635847000,-1181.55707201,0.00031308,7]
[425258750,1781635847000,-915.93030031,0.00032,120]
[425258727,1781635847000,-151.49,0.00031256,13]
[425258780,1781635847000,-1162.91,0.00032384,5]
[425258732,1781635847000,-585.0,0.00031409,6]
[425258729,1781635847000,-1115.39964273,0.00031308,7]
[425258726,1781635847000,-151.49,0.00031256,13]
[425258731,1781635847000,-200.0,0.000314,11]
[425258728,1781635847000,-979.12779552,0.00031308,7]
[425258734,1781635847000,-1001.0,0.00031945,120]
[425258738,1781635847000,-388.63141773,0.00032,120]
[425258737,1781635847000,-1416.1462627,0.00032,120]
[425258743,1781635847000,-179.25244946,0.00032,120]
[425258742,1781635847000,-703.47784449,0.00032,120]
[425258751,1781635847000,-192.57435081,0.00032,120]
[425258740,1781635847000,-350.94364227,0.00032,120]
[425258736,1781635847000,-1264.33058709,0.00032,120]
[425258735,1781635847000,-161.55800474,0.00032,120]
[425258739,1781635847000,-587.96712675,0.00032,120]
[425258741,1781635847000,-164.94534788,0.00032,120]
[425258744,1781635847000,-393.84337441,0.00032,120]
[425258754,1781635847000,-717.65445761,0.00032,120]
[425258753,1781635847000,-182.88533494,0.00032,120]
[425258752,1781635847000,-315.06178872,0.00032,120]
[425258746,1781635847000,-390.74924321,0.00032,120]
[425258749,1781635847000,-177.51975711,0.00032,120]
[425258747,1781635847000,-397.71917115,0.00032,120]
[425258748,1781635847000,-173.25366313,0.00032,120]
[425258733,1781635847000,-585.0,0.00031943,7]
[425258781,1781635847000,-200.0,0.000324,12]
[425258782,1781635847000,-585.0,0.00032477,7]
[425258783,1781635847000,-1225.42993739,0.00032508,7]
[425258820,1781635847000,-275.0,0.00032849,7]
[425258815,1781635847000,-275.0,0.00032849,7]
[425258819,1781635847000,-275.0,0.00032849,7]
[425258823,1781635847000,-275.0,0.00032849,7]
[425258816,1781635847000,-275.0,0.00032849,7]
[425258814,1781635847000,-275.0,0.00032849,7]
[425258821,1781635847000,-275.0,0.00032849,7]
[425258824,1781635847000,-275.0,0.00032849,7]
[425258822,1781635847000,-275.0,0.00032849,7]
[425258818,1781635847000,-275.0,0.00032849,7]
[425258826,1781635847000,-275.0,0.00032849,7]
[425258825,1781635847000,-275.0,0.00032849,7]
[425258817,1781635847000,-275.0,0.00032849,7]
[425258835,1781635847000,-170.0,0.00032871,30]
[425258837,1781635847000,-177.0,0.00032871,30]
[425258834,1781635847000,-275.0,0.00032849,7]
[425258836,1781635847000,-150.0,0.00032871,30]
[425258828,1781635847000,-275.0,0.00032849,7]
[425258829,1781635847000,-275.0,0.00032849,7]
[425258830,1781635847000,-275.0,0.00032849,7]
[425258831,1781635847000,-275.0,0.00032849,7]
[425258832,1781635847000,-275.0,0.00032849,7]
[425258840,1781635847000,-219.66841002,0.00032877,7]
[425258838,1781635847000,-210.01509017,0.00032871,30]
[425258839,1781635847000,-206.31836629,0.00032871,30]
[425258784,1781635847000,-1346.96410296,0.00032508,7]
[425258833,1781635847000,-275.0,0.00032849,7]
[425258813,1781635847000,-275.0,0.00032849,7]
[425258827,1781635847000,-275.0,0.00032849,7]
[425258804,1781635847000,-275.0,0.00032849,7]
[425258812,1781635847000,-275.0,0.00032849,7]
[425258786,1781635847000,-150.0,0.00032562,2]
[425258787,1781635847000,-1142.31576144,0.00032594,7]
[425258789,1781635847000,-150.0,0.00032764,2]
[425258792,1781635847000,-204.0,0.00032764,2]
[425258795,1781635847000,-500.0,0.00032805,2]
[425258788,1781635847000,-1140.6,0.0003274,2]
[425258791,1781635847000,-150.0,0.00032764,2]
[425258794,1781635847000,-500.0,0.00032805,2]
[425258798,1781635847000,-275.0,0.00032849,7]
[425258797,1781635847000,-150.0,0.00032805,2]
[425258793,1781635847000,-5049.5279,0.00032777,2]
[425258790,1781635847000,-150.0,0.00032764,2]
[425258785,1781635847000,-1140.6,0.00032534,2]
[425258811,1781635847000,-275.0,0.00032849,7]
[425258803,1781635847000,-275.0,0.00032849,7]
[425258810,1781635847000,-275.0,0.00032849,7]
[425258809,1781635847000,-275.0,0.00032849,7]
[425258796,1781635847000,-452.48012679,0.00032805,2]
[425258802,1781635847000,-275.0,0.00032849,7]
[425258808,1781635847000,-275.0,0.00032849,7]
[425258799,1781635847000,-275.0,0.00032849,7]
[425258806,1781635847000,-275.0,0.00032849,7]
[425258807,1781635847000,-275.0,0.00032849,7]
[425258805,1781635847000,-275.0,0.00032849,7]
[425258800,1781635847000,-275.0,0.00032849,7]
[425258801,1781635847000,-275.0,0.00032849,7]
[425258879,1781635848000,-173.0,0.00033009,30]
[425258880,1781635848000,-152.0,0.00033009,30]
[425258876,1781635848000,-310.0,0.00033,2]
[425258882,1781635848000,-1267.0,0.00033009,30]
[425258878,1781635848000,-184.0,0.00033009,30]
[425258872,1781635848000,-310.0,0.00033,120]
[425258883,1781635848000,-158.0,0.00033009,30]
[425258877,1781635848000,-1000.0,0.00033,2]
[425258884,1781635848000,-153.0,0.00033009,30]
[425258875,1781635848000,-191.92236507,0.00033,120]
[425258881,1781635848000,-751.0,0.00033009,30]
[425258873,1781635848000,-350.02515028,0.00033,2]
[425258874,1781635848000,-316.0,0.00033,2]
[425258885,1781635848000,-394.0,0.00033009,30]
[425258890,1781635848000,-210.0,0.00033012,2]
[425258896,1781635848000,-403.0,0.00033123,2]
[425258894,1781635848000,-364.0,0.00033012,30]
[425258887,1781635848000,-585.0,0.00033011,8]
[425258892,1781635848000,-677.0,0.00033012,30]
[425258891,1781635848000,-198.0,0.00033012,30]
[425258889,1781635848000,-150.0,0.00033012,2]
[425258893,1781635848000,-157.0,0.00033012,30]
[425258895,1781635848000,-158.0,0.00033012,30]
[425258886,1781635848000,-189.0,0.00033009,30]
[425258897,1781635848000,-4483.0,0.00033123,5]
[425258899,1781635848000,-374.0,0.00033123,120]
[425258900,1781635848000,-294.0,0.00033123,120]
[425258888,1781635848000,-235.0,0.00033012,2]
[425258871,1781635848000,-200.0,0.00033,120]
[425258846,1781635848000,-150.0,0.00032933,2]
[425258868,1781635848000,-182.88533494,0.00033,120]
[425258845,1781635848000,-808.63,0.00032883,8]
[425258847,1781635848000,-294.0,0.00032933,2]
[425258849,1781635848000,-161.55800474,0.00033,120]
[425258848,1781635848000,-1140.6,0.00032945,2]
[425258842,1781635848000,-4471.0,0.00032877,5]
[425258841,1781635848000,-439.33682004,0.00032877,7]
[425258844,1781635848000,-486.795018,0.00032877,120]
[425258843,1781635848000,-4548.0,0.00032877,5]
[425258853,1781635848000,-388.63141773,0.00033,120]
[425258852,1781635848000,-1416.1462627,0.00033,120]
[425258854,1781635848000,-587.96712675,0.00033,120]
[425258856,1781635848000,-164.94534788,0.00033,120]
[425258859,1781635848000,-393.84337441,0.00033,120]
[425258860,1781635848000,-190.91066939,0.00033,120]
[425258898,1781635848000,-178.86936652,0.00033123,120]
[425258851,1781635848000,-1264.33058709,0.00033,120]
[425258850,1781635848000,-2987.62045951,0.00033,120]
[425258858,1781635848000,-179.25244946,0.00033,120]
[425258861,1781635848000,-390.74924321,0.00033,120]
[425258857,1781635848000,-703.47784449,0.00033,120]
[425258863,1781635848000,-173.25366313,0.00033,120]
[425258862,1781635848000,-397.71917115,0.00033,120]
[425258865,1781635848000,-915.93030031,0.00033,120]
[425258867,1781635848000,-315.06178872,0.00033,120]
[425258869,1781635848000,-717.65445761,0.00033,120]
[425258866,1781635848000,-192.57435081,0.00033,120]
[425258864,1781635848000,-177.51975711,0.00033,120]
[425258870,1781635848000,-240.43830193,0.00033,120]
[425258905,1781635848000,-408.21,0.00033343,5]
[425258855,1781635848000,-350.94364227,0.00033,120]
[425258901,1781635848000,-343.86394382,0.00033151,2]
[425258945,1781635848000,-267.31690183,0.00033973,2]
[425258947,1781635848000,-1140.6,0.00033973,2]
[425258946,1781635848000,-179.47107134,0.00033973,2]
[425258944,1781635848000,-250.0,0.00033973,2]
[425258948,1781635848000,-221.229187,0.00034,120]
[425258939,1781635848000,-717.65445761,0.000339,120]
[425258935,1781635848000,-915.93030031,0.000339,120]
[425258937,1781635848000,-315.06178872,0.000339,120]
[425258940,1781635848000,-240.43830193,0.000339,120]
[425258938,1781635848000,-182.88533494,0.000339,120]
[425258943,1781635848000,-250.0,0.00033973,2]
[425258941,1781635848000,-191.92236507,0.000339,120]
[425258942,1781635848000,-250.0,0.00033973,2]
[425258936,1781635848000,-192.57435081,0.000339,120]
[425258951,1781635848000,-152.0,0.00034009,30]
[425258959,1781635848000,-677.0,0.00034012,30]
[425258953,1781635848000,-1267.0,0.00034009,30]
[425258956,1781635848000,-394.0,0.00034009,30]
[425258961,1781635848000,-364.0,0.00034012,30]
[425258952,1781635848000,-751.0,0.00034009,30]
[425258957,1781635848000,-189.0,0.00034009,30]
[425258958,1781635848000,-198.0,0.00034012,30]
[425258950,1781635848000,-173.0,0.00034009,30]
[425258954,1781635848000,-158.0,0.00034009,30]
[425258955,1781635848000,-153.0,0.00034009,30]
[425258963,1781635848000,-392.62853,0.00034078,120]
[425258962,1781635848000,-158.0,0.00034012,30]
[425258904,1781635848000,-500.0,0.00033276,120]
[425258960,1781635848000,-157.0,0.00034012,30]
[425258933,1781635848000,-173.25366313,0.000339,120]
[425258949,1781635848000,-184.0,0.00034009,30]
[425258928,1781635848000,-179.25244946,0.000339,120]
[425258926,1781635848000,-164.94534788,0.000339,120]
[425258906,1781635848000,-1140.6,0.00033356,2]
[425258902,1781635848000,-1140.6,0.00033151,2]
[425258907,1781635848000,-200.0,0.000334,13]
[425258903,1781635848000,-534.97931,0.00033177,120]
[425258908,1781635848000,-524.504174,0.00033477,120]
[425258910,1781635848000,-1140.6,0.00033562,2]
[425258916,1781635848000,-585.84564823,0.00033753,2]
[425258918,1781635848000,-514.173522,0.00033777,120]
[425258909,1781635848000,-585.0,0.00033545,9]
[425258917,1781635848000,-1140.6,0.00033767,2]
[425258919,1781635848000,-500.0,0.00033899,2]
[425258913,1781635848000,-1000.0,0.00033704,2]
[425258912,1781635848000,-419.0,0.0003368,2]
[425258920,1781635848000,-161.55800474,0.000339,120]
[425258930,1781635848000,-190.91066939,0.000339,120]
[425258929,1781635848000,-393.84337441,0.000339,120]
[425258914,1781635848000,-1044.84,0.00033704,2]
[425258934,1781635848000,-177.51975711,0.000339,120]
[425258925,1781635848000,-350.94364227,0.000339,120]
[425258932,1781635848000,-397.71917115,0.000339,120]
[425258931,1781635848000,-390.74924321,0.000339,120]
[425258927,1781635848000,-703.47784449,0.000339,120]
[425258924,1781635848000,-587.96712675,0.000339,120]
[425258922,1781635848000,-1416.1462627,0.000339,120]
[425258911,1781635848000,-3646.0,0.0003368,2]
[425258921,1781635848000,-1264.33058709,0.000339,120]
[425258915,1781635848000,-800.0,0.00033704,2]
[425258923,1781635848000,-388.63141773,0.000339,120]
[425259004,1781635849000,-729.15388008,0.00034229,2]
[425259008,1781635849000,-300.7600897,0.00034229,2]
[425259007,1781635849000,-300.0,0.00034229,2]
[425259005,1781635849000,-300.0,0.00034229,2]
[425259013,1781635849000,-300.0,0.00034229,2]
[425259006,1781635849000,-302.97495936,0.00034229,2]
[425259000,1781635849000,-300.0,0.00034229,2]
[425258998,1781635849000,-607.02265113,0.00034229,2]
[425259001,1781635849000,-300.0,0.00034229,2]
[425259002,1781635849000,-300.0,0.00034229,2]
[425258994,1781635849000,-300.0,0.00034229,2]
[425259012,1781635849000,-300.0,0.00034229,2]
[425259003,1781635849000,-536.0886118,0.00034229,2]
[425259009,1781635849000,-301.74779532,0.00034229,2]
[425259024,1781635849000,-868.04256557,0.00034229,2]
[425259011,1781635849000,-300.0,0.00034229,2]
[425259014,1781635849000,-300.0,0.00034229,2]
[425259015,1781635849000,-300.0,0.00034229,2]
[425259017,1781635849000,-300.0,0.00034229,2]
[425259027,1781635849000,-300.0,0.00034229,2]
[425259028,1781635849000,-300.0,0.00034229,2]
[425259029,1781635849000,-300.0,0.00034229,2]
[425259023,1781635849000,-300.0,0.00034229,2]
[425259020,1781635849000,-300.0,0.00034229,2]
[425259019,1781635849000,-528.9427319,0.00034229,2]
[425259022,1781635849000,-300.0,0.00034229,2]
[425259016,1781635849000,-300.0,0.00034229,2]
[425259018,1781635849000,-345.2942186,0.00034229,2]
[425258992,1781635849000,-300.0,0.00034229,2]
[425259010,1781635849000,-300.0,0.00034229,2]
[425258995,1781635849000,-300.0,0.00034229,2]
[425258964,1781635849000,-585.0,0.00034079,9]
[425258999,1781635849000,-300.0,0.00034229,2]
[425258973,1781635849000,-445.48672195,0.00034229,2]
[425259025,1781635849000,-953.01887079,0.00034229,2]
[425258974,1781635849000,-300.0,0.00034229,2]
[425258966,1781635849000,-150.0,0.0003419,2]